[Event "*** Titled Tuesday Blitz"]
[Site "Chess.com"]
[Date "2018.06.05"]
[Round "2"]
[White "Colombiano07"]
[Black "kikoveiga"]
[Result "1-0"]
[WhiteElo "2232"]
[BlackElo "2163"]
[TimeControl "180+2"]
[EndTime "13:24:11 PDT"]
[Termination "Colombiano07 won by resignation"]

1. e4 {[%clk 0:03:01.9]} 1... c5 {[%clk 0:02:59.9]} 2. Nc3 {[%clk 0:03:02.7]}
2... Nc6 {[%clk 0:03:01.1]} 3. Bb5 {[%clk 0:03:03]} 3... d6 {[%clk 0:02:58.1]}
4. Bxc6+ {[%clk 0:03:03.7]} 4... bxc6 {[%clk 0:03:00]} 5. f4 {[%clk 0:03:05.1]}
5... g6 {[%clk 0:03:01.3]} 6. Nf3 {[%clk 0:03:07]} 6... Bg7 {[%clk 0:03:02.5]}
7. O-O {[%clk 0:03:08.7]} 7... Rb8 {[%clk 0:03:02.4]} 8. d3 {[%clk 0:03:08.9]}
8... Nh6 {[%clk 0:03:01.6]} 9. Qe1 {[%clk 0:03:09.2]} 9... O-O {[%clk
0:03:02.3]} 10. Qh4 {[%clk 0:03:06.6]} 10... e6 {[%clk 0:02:50.8]} 11. Ng5
{[%clk 0:03:04.8]} 11... d5 {[%clk 0:02:49.1]} 12. Rb1 {[%clk 0:02:40.8]} 12...
f6 {[%clk 0:02:23.1]} 13. Nf3 {[%clk 0:02:39.4]} 13... Nf7 {[%clk 0:02:24.6]}
14. Bd2 {[%clk 0:02:37.5]} 14... f5 {[%clk 0:02:18.2]} 15. Qxd8 {[%clk
0:02:35.2]} 15... Rxd8 {[%clk 0:02:20.1]} 16. e5 {[%clk 0:02:34.7]} 16... Ba6
{[%clk 0:02:17.2]} 17. Na4 {[%clk 0:02:32]} 17... Bf8 {[%clk 0:02:17.3]} 18. Ba5
{[%clk 0:02:20.9]} 18... Rd7 {[%clk 0:02:14]} 19. b3 {[%clk 0:02:06.5]} 19...
Bb5 {[%clk 0:02:02.4]} 20. Nc3 {[%clk 0:02:00]} 20... h6 {[%clk 0:01:59.2]} 21.
h4 {[%clk 0:01:57.1]} 21... Be7 {[%clk 0:01:59.1]} 22. g3 {[%clk 0:01:57.9]}
22... Nd8 {[%clk 0:01:43.6]} 23. Ne2 {[%clk 0:01:31.6]} 23... Nb7 {[%clk
0:01:41.8]} 24. Bd2 {[%clk 0:01:32]} 24... Bd8 {[%clk 0:01:40.1]} 25. c4 {[%clk
0:01:30]} 25... Ba6 {[%clk 0:01:38.8]} 26. Rbc1 {[%clk 0:01:25.7]} 26... Bb6
{[%clk 0:01:27.4]} 27. Nc3 {[%clk 0:01:25.8]} 27... Rbd8 {[%clk 0:01:24.8]} 28.
Rf2 {[%clk 0:01:24.5]} 28... Ba5 {[%clk 0:01:09.6]} 29. Kf1 {[%clk 0:01:19.1]}
29... Kf7 {[%clk 0:01:04.8]} 30. Ke2 {[%clk 0:01:19.4]} 30... Bb4 {[%clk
0:01:04.8]} 31. Rff1 {[%clk 0:01:17.2]} 31... Ba3 {[%clk 0:01:04.6]} 32. Rc2
{[%clk 0:01:17.6]} 32... Bb4 {[%clk 0:01:00]} 33. a3 {[%clk 0:01:13.9]} 33...
Ba5 {[%clk 0:00:57.8]} 34. Na4 {[%clk 0:01:07]} 34... Bxd2 {[%clk 0:00:56.7]}
35. Rxd2 {[%clk 0:01:08.9]} 35... Rc8 {[%clk 0:00:51.4]} 36. Rc1 {[%clk
0:01:08.4]} 36... Rdc7 {[%clk 0:00:50.4]} 37. Rdc2 {[%clk 0:01:06.8]} 37... Ke7
{[%clk 0:00:46.3]} 38. Ke3 {[%clk 0:01:01.1]} 38... Kd7 {[%clk 0:00:46.5]} 39.
h5 {[%clk 0:00:59.7]} 39... gxh5 {[%clk 0:00:43.8]} 40. Rh1 {[%clk 0:00:59.7]}
40... Na5 {[%clk 0:00:45.2]} 41. Rb2 {[%clk 0:00:56.6]} 41... Ke7 {[%clk
0:00:36.4]} 42. Nxc5 {[%clk 0:00:56.4]} 42... dxc4 {[%clk 0:00:28.9]} 43. Nxa6
{[%clk 0:00:54.7]} 43... c3 {[%clk 0:00:29.9]} 1-0

[Event "*** Titled Tuesday Blitz"]
[Site "Chess.com"]
[Date "2018.06.05"]
[Round "2"]
[White "x-3738459472"]
[Black "Zufi1811"]
[Result "1-0"]
[WhiteElo "2441"]
[BlackElo "2461"]
[TimeControl "180+2"]
[EndTime "13:24:12 PDT"]
[Termination "x-3738459472 won by resignation"]

1. e4 {[%clk 0:03:01.9]} 1... c5 {[%clk 0:03:00.4]} 2. Nc3 {[%clk 0:03:01.6]}
2... Nc6 {[%clk 0:02:59.4]} 3. Bb5 {[%clk 0:02:59.3]} 3... g6 {[%clk 0:02:59.6]}
4. Bxc6 {[%clk 0:03:00]} 4... bxc6 {[%clk 0:03:01.5]} 5. f4 {[%clk 0:03:01.8]}
5... Bg7 {[%clk 0:03:02]} 6. Nf3 {[%clk 0:03:03.3]} 6... d6 {[%clk 0:03:01.7]}
7. d3 {[%clk 0:03:04.5]} 7... f5 {[%clk 0:03:01.3]} 8. O-O {[%clk 0:03:03.9]}
8... Nh6 {[%clk 0:03:02.5]} 9. Qe2 {[%clk 0:03:05.2]} 9... Nf7 {[%clk 0:03:03]}
10. Bd2 {[%clk 0:03:06.7]} 10... O-O {[%clk 0:03:03.1]} 11. Rae1 {[%clk
0:03:08.2]} 11... e6 {[%clk 0:03:01.3]} 12. Na4 {[%clk 0:03:04.5]} 12... Ba6
{[%clk 0:02:31.9]} 13. c4 {[%clk 0:03:02.4]} 13... Rb8 {[%clk 0:02:26.3]} 14. b3
{[%clk 0:03:03.5]} 14... e5 {[%clk 0:02:06.4]} 15. fxe5 {[%clk 0:03:02.6]} 15...
Nxe5 {[%clk 0:02:08.3]} 16. Nxe5 {[%clk 0:03:02.6]} 16... Bxe5 {[%clk
0:02:10.2]} 17. exf5 {[%clk 0:03:03.8]} 17... gxf5 {[%clk 0:02:10.2]} 18. Rxf5
{[%clk 0:02:57.7]} 18... Qh4 {[%clk 0:02:04.4]} 19. Rg5+ {[%clk 0:02:52.7]}
19... Kh8 {[%clk 0:02:02.7]} 20. Rxe5 {[%clk 0:02:49.2]} 20... dxe5 {[%clk
0:02:02.7]} 21. Qxe5+ {[%clk 0:02:51.1]} 21... Kg8 {[%clk 0:02:01.2]} 22. Qe6+
{[%clk 0:02:40.5]} 22... Rf7 {[%clk 0:02:01.9]} 23. g3 {[%clk 0:02:31.6]} 23...
Qd4+ {[%clk 0:01:59.5]} 24. Re3 {[%clk 0:02:28.4]} 24... Rf8 {[%clk 0:01:25.5]}
25. Bc3 {[%clk 0:02:22.2]} 25... Qd7 {[%clk 0:01:09.1]} 26. Qxd7 {[%clk
0:02:21.8]} 26... Rxd7 {[%clk 0:01:11]} 27. Nxc5 {[%clk 0:02:23.1]} 27... Rdf7
{[%clk 0:01:04.9]} 28. Nxa6 {[%clk 0:02:23.3]} 28... Rf1+ {[%clk 0:01:05.4]} 29.
Kg2 {[%clk 0:02:24.8]} 29... R8f2+ {[%clk 0:01:06.4]} 30. Kh3 {[%clk 0:02:25.9]}
30... Rh1 {[%clk 0:01:08.3]} 31. Kg4 {[%clk 0:02:17.8]} 31... Rhxh2 {[%clk
0:01:05.7]} 32. Nc5 {[%clk 0:02:16]} 32... Rh6 {[%clk 0:00:56.3]} 33. Re6 {[%clk
0:02:11.6]} 33... Rxe6 {[%clk 0:00:52.3]} 34. Nxe6 {[%clk 0:02:13.5]} 34... Rxa2
{[%clk 0:00:53.1]} 35. d4 {[%clk 0:02:09.6]} 35... Rc2 {[%clk 0:00:49.9]} 36.
Bb4 {[%clk 0:02:07.1]} 36... Kf7 {[%clk 0:00:51.2]} 37. Ng5+ {[%clk 0:02:04.5]}
37... Kg6 {[%clk 0:00:50.9]} 38. Nf3 {[%clk 0:02:05.1]} 38... h5+ {[%clk
0:00:45.6]} 39. Kf4 {[%clk 0:02:05.9]} 39... Rf2 {[%clk 0:00:40]} 40. Bc5 {[%clk
0:02:06]} 40... Kf6 {[%clk 0:00:35.1]} 41. d5 {[%clk 0:02:04.4]} 41... Rf1
{[%clk 0:00:35.4]} 42. dxc6 {[%clk 0:02:05.1]} 42... Ke6 {[%clk 0:00:36.1]} 43.
Bxa7 {[%clk 0:02:02.7]} 43... Kd6 {[%clk 0:00:36]} 44. Bd4 {[%clk 0:01:58.8]}
44... Kxc6 {[%clk 0:00:32.7]} 45. b4 {[%clk 0:01:59.5]} 45... Rc1 {[%clk
0:00:30.9]} 46. b5+ {[%clk 0:02:00.3]} 46... Kd6 {[%clk 0:00:31.4]} 47. c5+
{[%clk 0:01:58.6]} 47... Kd5 {[%clk 0:00:33.3]} 48. b6 {[%clk 0:01:59]} 48...
Rb1 {[%clk 0:00:34]} 49. Be3 {[%clk 0:01:54.3]} 49... Kc6 {[%clk 0:00:31.5]} 50.
Ne5+ {[%clk 0:01:44.5]} 50... Kd5 {[%clk 0:00:32.2]} 51. c6 {[%clk 0:01:45.2]}
51... Rf1+ {[%clk 0:00:32.9]} 52. Kg5 {[%clk 0:01:43.3]} 52... Kxe5 {[%clk
0:00:32.8]} 53. c7 {[%clk 0:01:44.2]} 1-0

[Event "*** Titled Tuesday Blitz"]
[Site "Chess.com"]
[Date "2018.06.05"]
[Round "2"]
[White "awesomevishesh"]
[Black "GMCanty"]
[Result "1-0"]
[WhiteElo "2097"]
[BlackElo "2202"]
[TimeControl "180+2"]
[EndTime "13:24:12 PDT"]
[Termination "awesomevishesh won by resignation"]

1. Nf3 {[%clk 0:03:01.9]} 1... c5 {[%clk 0:02:59.9]} 2. g3 {[%clk 0:03:01.3]}
2... g6 {[%clk 0:02:58.6]} 3. Bg2 {[%clk 0:03:01.6]} 3... Bg7 {[%clk 0:02:56.7]}
4. O-O {[%clk 0:02:53.2]} 4... Nc6 {[%clk 0:02:57.8]} 5. c4 {[%clk 0:02:49.8]}
5... d6 {[%clk 0:02:58.5]} 6. Nc3 {[%clk 0:02:49.1]} 6... e5 {[%clk 0:02:57.3]}
7. d3 {[%clk 0:02:49.6]} 7... Nge7 {[%clk 0:02:56.8]} 8. a3 {[%clk 0:02:50.2]}
8... a5 {[%clk 0:02:56.6]} 9. Rb1 {[%clk 0:02:47.1]} 9... h6 {[%clk 0:02:53.5]}
10. Ne1 {[%clk 0:02:47]} 10... Be6 {[%clk 0:02:52.3]} 11. Nc2 {[%clk 0:02:45.5]}
11... d5 {[%clk 0:02:50.6]} 12. cxd5 {[%clk 0:02:45.9]} 12... Nxd5 {[%clk
0:02:52.1]} 13. Ne3 {[%clk 0:02:42.1]} 13... Nde7 {[%clk 0:02:51.4]} 14. Nc4
{[%clk 0:02:37.4]} 14... O-O {[%clk 0:02:33.6]} 15. Be3 {[%clk 0:02:24.6]} 15...
b6 {[%clk 0:02:16]} 16. b4 {[%clk 0:02:02]} 16... axb4 {[%clk 0:01:35.1]} 17.
axb4 {[%clk 0:02:01.9]} 17... Bxc4 {[%clk 0:01:33.9]} 18. dxc4 {[%clk
0:02:01.6]} 18... cxb4 {[%clk 0:01:34.8]} 19. Nd5 {[%clk 0:01:56.1]} 19... Rb8
{[%clk 0:00:54.2]} 20. Nxe7+ {[%clk 0:01:35.9]} 20... Nxe7 {[%clk 0:00:55.7]}
21. Qxd8 {[%clk 0:01:35.7]} 21... Rfxd8 {[%clk 0:00:57.3]} 22. Rxb4 {[%clk
0:01:36.6]} 22... Nf5 {[%clk 0:00:47.2]} 23. Bxb6 {[%clk 0:01:27.7]} 23... Nd4
{[%clk 0:00:45]} 24. e3 {[%clk 0:01:13.5]} 24... Nc2 {[%clk 0:00:40.3]} 25. Rb3
{[%clk 0:00:50.5]} 25... Na3 {[%clk 0:00:41]} 26. Bd5 {[%clk 0:00:40.7]} 26...
Rdc8 {[%clk 0:00:30.6]} 27. c5 {[%clk 0:00:26.7]} 27... Nc2 {[%clk 0:00:21.3]}
28. Rc1 {[%clk 0:00:26.3]} 28... Rd8 {[%clk 0:00:16.8]} 29. Bxd8 {[%clk
0:00:23.9]} 29... Rxd8 {[%clk 0:00:18.5]} 30. Rxc2 {[%clk 0:00:22.4]} 30... Rxd5
{[%clk 0:00:18.1]} 31. Rb8+ {[%clk 0:00:21.4]} 31... Kh7 {[%clk 0:00:17.6]} 32.
c6 {[%clk 0:00:22.9]} 32... Rd1+ {[%clk 0:00:18.1]} 33. Kg2 {[%clk 0:00:23.4]}
1-0

[Event "*** Titled Tuesday Blitz"]
[Site "Chess.com"]
[Date "2018.06.05"]
[Round "2"]
[White "therealtrader"]
[Black "Micki-taryan"]
[Result "0-1"]
[WhiteElo "2612"]
[BlackElo "2822"]
[TimeControl "180+2"]
[EndTime "13:24:15 PDT"]
[Termination "Micki-taryan won by resignation"]

1. d4 {[%clk 0:03:01.5]} 1... Nf6 {[%clk 0:03:01]} 2. c4 {[%clk 0:03:03]} 2...
e6 {[%clk 0:03:02.1]} 3. Nf3 {[%clk 0:03:04.5]} 3... b6 {[%clk 0:03:02.3]} 4. g3
{[%clk 0:03:04.9]} 4... Bb7 {[%clk 0:03:03.7]} 5. Bg2 {[%clk 0:03:06.2]} 5...
Be7 {[%clk 0:03:05.1]} 6. O-O {[%clk 0:03:07.6]} 6... O-O {[%clk 0:03:06.7]} 7.
Re1 {[%clk 0:03:09.2]} 7... d5 {[%clk 0:03:05.5]} 8. cxd5 {[%clk 0:03:10.6]}
8... exd5 {[%clk 0:03:07.4]} 9. Nc3 {[%clk 0:03:12.1]} 9... Nbd7 {[%clk
0:03:07.5]} 10. Bf4 {[%clk 0:03:13.4]} 10... c6 {[%clk 0:03:07.6]} 11. Rc1
{[%clk 0:03:13.9]} 11... Re8 {[%clk 0:03:08.5]} 12. Ne5 {[%clk 0:03:15.1]} 12...
Nf8 {[%clk 0:03:05.3]} 13. e4 {[%clk 0:03:14.6]} 13... Ne6 {[%clk 0:03:05.3]}
14. Be3 {[%clk 0:03:07.6]} 14... Bb4 {[%clk 0:03:01.9]} 15. exd5 {[%clk
0:03:07.8]} 15... Nxd5 {[%clk 0:03:02.8]} 16. Bxd5 {[%clk 0:02:33.5]} 16... cxd5
{[%clk 0:03:00.6]} 17. Qa4 {[%clk 0:02:34.7]} 17... a5 {[%clk 0:02:39.8]} 18.
Nc6 {[%clk 0:02:34.9]} 18... Qd6 {[%clk 0:02:36.5]} 19. Nxb4 {[%clk 0:02:11.4]}
19... axb4 {[%clk 0:02:38.4]} 20. Nb5 {[%clk 0:02:12.7]} 20... Qe7 {[%clk
0:02:39.8]} 21. Qb3 {[%clk 0:02:08.4]} 21... Rec8 {[%clk 0:02:34.6]} 22. Bd2
{[%clk 0:02:05.8]} 22... Rc4 {[%clk 0:02:06.5]} 23. Rxc4 {[%clk 0:01:52.9]}
23... dxc4 {[%clk 0:02:08.4]} 24. Qxc4 {[%clk 0:01:49.2]} 24... Qd7 {[%clk
0:02:09.4]} 25. d5 {[%clk 0:01:35.9]} 25... Bxd5 {[%clk 0:02:06.8]} 26. Qxb4
{[%clk 0:01:36.9]} 26... Bc6 {[%clk 0:02:03.4]} 27. Nd6 {[%clk 0:00:33.7]} 27...
Ra4 {[%clk 0:01:55.7]} 28. Qxb6 {[%clk 0:00:34.7]} 28... Qxd6 {[%clk 0:01:56]}
29. Bf4 {[%clk 0:00:26.4]} 29... Qd5 {[%clk 0:01:42.7]} 30. Qb8+ {[%clk
0:00:24.8]} 30... Nf8 {[%clk 0:01:42.5]} 31. Kf1 {[%clk 0:00:26.3]} 31... Ra8
{[%clk 0:01:38]} 32. Qd6 {[%clk 0:00:20.9]} 32... Qg2+ {[%clk 0:01:37.8]} 33.
Ke2 {[%clk 0:00:22.3]} 33... Rxa2 {[%clk 0:01:34.2]} 34. Kd1 {[%clk 0:00:13.3]}
34... Ra1+ {[%clk 0:01:31.2]} 35. Bc1 {[%clk 0:00:13.5]} 35... Qf3+ {[%clk
0:01:31.5]} 36. Kc2 {[%clk 0:00:14.4]} 36... Qxf2+ {[%clk 0:01:31.8]} 37. Qd2
{[%clk 0:00:15.6]} 37... Qxd2+ {[%clk 0:01:27.7]} 38. Kxd2 {[%clk 0:00:17.5]}
38... Ne6 {[%clk 0:01:28.7]} 39. Re5 {[%clk 0:00:16.5]} 39... h6 {[%clk
0:01:29.2]} 40. b4 {[%clk 0:00:15.9]} 40... Ra2+ {[%clk 0:01:29.2]} 41. Kd3
{[%clk 0:00:16.1]} 41... Rxh2 {[%clk 0:01:31.1]} 42. b5 {[%clk 0:00:17.4]} 42...
Bb7 {[%clk 0:01:32.2]} 43. Be3 {[%clk 0:00:18.7]} 43... Rb2 {[%clk 0:01:32.5]}
44. Bg1 {[%clk 0:00:18.3]} 44... Kh7 {[%clk 0:01:33.5]} 45. Kc3 {[%clk 0:00:19]}
45... Rb1 {[%clk 0:01:34.1]} 46. Bf2 {[%clk 0:00:19.8]} 46... Kg6 {[%clk
0:01:35]} 47. Kc4 {[%clk 0:00:19.7]} 47... Rc1+ {[%clk 0:01:33.7]} 48. Kb4
{[%clk 0:00:20.3]} 48... Rc2 {[%clk 0:01:28]} 49. Ba7 {[%clk 0:00:18.8]} 49...
Nc7 {[%clk 0:01:26.5]} 50. Re7 {[%clk 0:00:19.3]} 50... Nd5+ {[%clk 0:01:27]}
0-1

[Event "*** Titled Tuesday Blitz"]
[Site "Chess.com"]
[Date "2018.06.05"]
[Round "2"]
[White "Albertu"]
[Black "cool64chess"]
[Result "0-1"]
[WhiteElo "2317"]
[BlackElo "2254"]
[TimeControl "180+2"]
[EndTime "13:24:15 PDT"]
[Termination "cool64chess won by resignation"]

1. e4 {[%clk 0:03:01.9]} 1... e6 {[%clk 0:03:00.8]} 2. d4 {[%clk 0:03:02]} 2...
d5 {[%clk 0:03:01.7]} 3. Nc3 {[%clk 0:03:03.1]} 3... Bb4 {[%clk 0:03:02]} 4. a3
{[%clk 0:03:03.5]} 4... Bxc3+ {[%clk 0:03:02.5]} 5. bxc3 {[%clk 0:03:05.4]} 5...
dxe4 {[%clk 0:03:04.2]} 6. Qg4 {[%clk 0:03:06.8]} 6... Nf6 {[%clk 0:03:04.5]} 7.
Qxg7 {[%clk 0:03:08.1]} 7... Rg8 {[%clk 0:03:06]} 8. Qh6 {[%clk 0:03:09.5]} 8...
c5 {[%clk 0:03:06.4]} 9. Ne2 {[%clk 0:03:07.2]} 9... Nc6 {[%clk 0:03:06.6]} 10.
dxc5 {[%clk 0:03:07.9]} 10... Rg6 {[%clk 0:03:05.8]} 11. Qd2 {[%clk 0:03:08.5]}
11... Bd7 {[%clk 0:03:03.2]} 12. Ng3 {[%clk 0:03:05.9]} 12... Qa5 {[%clk
0:03:02.2]} 13. Rb1 {[%clk 0:03:03.3]} 13... O-O-O {[%clk 0:03:01]} 14. Rb5
{[%clk 0:02:58.1]} 14... Qa4 {[%clk 0:02:54.6]} 15. Qe2 {[%clk 0:02:12.2]} 15...
Nd5 {[%clk 0:02:21.8]} 16. Qxe4 {[%clk 0:01:58.2]} 16... Nxc3 {[%clk 0:02:02.6]}
17. Qxa4 {[%clk 0:01:57.2]} 17... Nxa4 {[%clk 0:02:03.5]} 18. Bd3 {[%clk
0:01:56.1]} 18... Ne5 {[%clk 0:01:59.9]} 19. Rb4 {[%clk 0:01:15.5]} 19... Nxd3+
{[%clk 0:01:55.3]} 20. cxd3 {[%clk 0:01:17.4]} 20... Bc6 {[%clk 0:01:56.1]} 21.
O-O {[%clk 0:00:50.9]} 21... Rxd3 {[%clk 0:01:46.1]} 22. h4 {[%clk 0:00:46.4]}
22... Nc3 {[%clk 0:01:37.8]} 23. Kh2 {[%clk 0:00:39.4]} 23... Ne2 {[%clk
0:01:33.3]} 24. Bf4 {[%clk 0:00:30]} 24... Rg4 {[%clk 0:01:20.9]} 25. Be3 {[%clk
0:00:20.4]} 25... Nxg3 {[%clk 0:01:16.4]} 26. Rxg4 {[%clk 0:00:14.3]} 26...
Nxf1+ {[%clk 0:01:16.2]} 27. Kg1 {[%clk 0:00:15.1]} 27... Nxe3 {[%clk
0:01:14.7]} 28. fxe3 {[%clk 0:00:13.2]} 28... Rxe3 {[%clk 0:01:15.5]} 29. Rg7
{[%clk 0:00:14.7]} 29... f5 {[%clk 0:01:12.1]} 30. Rxh7 {[%clk 0:00:15.5]} 30...
Rg3 {[%clk 0:01:13]} 31. h5 {[%clk 0:00:15]} 31... Rxg2+ {[%clk 0:01:12.8]} 32.
Kf1 {[%clk 0:00:15.6]} 32... Rh2 {[%clk 0:01:12]} 33. h6 {[%clk 0:00:16.8]}
33... Be4 {[%clk 0:01:09.4]} 34. Kg1 {[%clk 0:00:12.4]} 34... Rh5 {[%clk
0:01:08]} 35. Kf2 {[%clk 0:00:12.4]} 35... e5 {[%clk 0:01:03.3]} 36. a4 {[%clk
0:00:11.9]} 36... f4 {[%clk 0:01:00.7]} 37. Re7 {[%clk 0:00:11.3]} 37... Kd8
{[%clk 0:00:59.6]} 0-1

[Event "*** Titled Tuesday Blitz"]
[Site "Chess.com"]
[Date "2018.06.05"]
[Round "2"]
[White "jlucasvf"]
[Black "maziarbagheri"]
[Result "1-0"]
[WhiteElo "2252"]
[BlackElo "2261"]
[TimeControl "180+2"]
[EndTime "13:24:16 PDT"]
[Termination "jlucasvf won by resignation"]

1. e4 {[%clk 0:03:01.9]} 1... e5 {[%clk 0:02:58.8]} 2. Nf3 {[%clk 0:03:01.9]}
2... Nc6 {[%clk 0:02:59.3]} 3. Bc4 {[%clk 0:03:03.1]} 3... Nf6 {[%clk
0:02:59.6]} 4. d3 {[%clk 0:03:01.9]} 4... Bc5 {[%clk 0:03:00]} 5. O-O {[%clk
0:03:03.3]} 5... d6 {[%clk 0:03:00.8]} 6. c3 {[%clk 0:03:04]} 6... Bg4 {[%clk
0:03:00]} 7. Nbd2 {[%clk 0:03:04.1]} 7... Qd7 {[%clk 0:02:58.2]} 8. b4 {[%clk
0:03:04.4]} 8... Bb6 {[%clk 0:02:58.4]} 9. a4 {[%clk 0:03:05.2]} 9... a5 {[%clk
0:02:58.7]} 10. b5 {[%clk 0:03:06.1]} 10... Ne7 {[%clk 0:02:59]} 11. Bb3 {[%clk
0:03:06.8]} 11... Ng6 {[%clk 0:02:58]} 12. Qe1 {[%clk 0:02:24.9]} 12... Nf4
{[%clk 0:02:51.5]} 13. h3 {[%clk 0:02:24.5]} 13... Nxd3 {[%clk 0:02:46.2]} 14.
Qd1 {[%clk 0:02:10.2]} 14... Bxh3 {[%clk 0:02:22.4]} 15. Ng5 {[%clk 0:01:16.7]}
15... Be6 {[%clk 0:01:27.8]} 16. Nxe6 {[%clk 0:01:16.8]} 16... fxe6 {[%clk
0:01:29.7]} 17. Nc4 {[%clk 0:01:15.8]} 17... Bxf2+ {[%clk 0:01:11.4]} 18. Rxf2
{[%clk 0:01:03.1]} 18... Nxf2 {[%clk 0:01:11.7]} 19. Kxf2 {[%clk 0:01:05]} 19...
Nxe4+ {[%clk 0:01:12.6]} 20. Kg1 {[%clk 0:01:06.5]} 20... O-O {[%clk 0:01:11.9]}
21. Nxe5 {[%clk 0:01:06.1]} 21... Qe7 {[%clk 0:01:11.8]} 22. Qg4 {[%clk
0:00:59.7]} 22... Nc5 {[%clk 0:01:07.8]} 23. Bg5 {[%clk 0:00:52.7]} 23... Qe8
{[%clk 0:01:06.2]} 24. Ba2 {[%clk 0:00:46.2]} 24... dxe5 {[%clk 0:01:02]} 25.
Re1 {[%clk 0:00:43.5]} 25... e4 {[%clk 0:00:53.7]} 26. Be3 {[%clk 0:00:37.6]}
26... Nd3 {[%clk 0:00:54]} 27. Bd4 {[%clk 0:00:34.2]} 27... Qg6 {[%clk
0:00:50.3]} 28. Rxe4 {[%clk 0:00:32.6]} 28... Qxg4 {[%clk 0:00:46.3]} 29. Rxg4
{[%clk 0:00:34.5]} 29... g6 {[%clk 0:00:28.6]} 30. Bxe6+ {[%clk 0:00:35.2]}
30... Rf7 {[%clk 0:00:29.8]} 31. Rg3 {[%clk 0:00:35.3]} 31... Nf4 {[%clk
0:00:29.7]} 32. Bxf7+ {[%clk 0:00:36.2]} 32... Kxf7 {[%clk 0:00:29.9]} 33. Rf3
{[%clk 0:00:38.1]} 33... g5 {[%clk 0:00:30.8]} 34. g3 {[%clk 0:00:39.6]} 34...
Ke6 {[%clk 0:00:30.6]} 35. gxf4 {[%clk 0:00:40.8]} 35... g4 {[%clk 0:00:32]} 36.
f5+ {[%clk 0:00:42]} 36... Kd5 {[%clk 0:00:33.3]} 37. Rf4 {[%clk 0:00:43.5]}
37... h5 {[%clk 0:00:34.1]} 38. f6 {[%clk 0:00:45]} 38... Rf8 {[%clk 0:00:35.4]}
39. Rf5+ {[%clk 0:00:46.1]} 39... Ke6 {[%clk 0:00:36.2]} 40. Rxh5 {[%clk
0:00:47.6]} 1-0

[Event "*** Titled Tuesday Blitz"]
[Site "Chess.com"]
[Date "2018.06.05"]
[Round "2"]
[White "Max_Schachmann"]
[Black "FranklinAPalomo"]
[Result "0-1"]
[WhiteElo "2603"]
[BlackElo "2355"]
[TimeControl "180+2"]
[EndTime "13:24:16 PDT"]
[Termination "FranklinAPalomo won by resignation"]

1. e4 {[%clk 0:03:01.9]} 1... c5 {[%clk 0:03:00.3]} 2. Nf3 {[%clk 0:03:02.3]}
2... d6 {[%clk 0:03:01.2]} 3. Bb5+ {[%clk 0:03:01.6]} 3... Bd7 {[%clk
0:03:01.6]} 4. Bxd7+ {[%clk 0:03:02.7]} 4... Qxd7 {[%clk 0:03:02.5]} 5. c4
{[%clk 0:03:03.9]} 5... Nc6 {[%clk 0:02:59.7]} 6. Nc3 {[%clk 0:03:04.5]} 6... g6
{[%clk 0:03:00]} 7. d4 {[%clk 0:03:05.4]} 7... cxd4 {[%clk 0:02:56.7]} 8. Nxd4
{[%clk 0:03:06.3]} 8... Bg7 {[%clk 0:02:58.3]} 9. Be3 {[%clk 0:03:06.7]} 9...
Nf6 {[%clk 0:02:59.2]} 10. f3 {[%clk 0:03:07.7]} 10... O-O {[%clk 0:03:00.1]}
11. O-O {[%clk 0:03:08.9]} 11... Rfc8 {[%clk 0:02:59.4]} 12. Rc1 {[%clk
0:03:08.7]} 12... Nxd4 {[%clk 0:02:52.8]} 13. Bxd4 {[%clk 0:03:04.2]} 13... Rxc4
{[%clk 0:02:53.7]} 14. Qd3 {[%clk 0:02:43.6]} 14... Rc6 {[%clk 0:02:27.7]} 15.
Rfe1 {[%clk 0:02:16]} 15... Rac8 {[%clk 0:02:27.4]} 16. a4 {[%clk 0:01:55.8]}
16... a6 {[%clk 0:02:22.9]} 17. Red1 {[%clk 0:01:52.3]} 17... Qe6 {[%clk
0:02:15]} 18. Be3 {[%clk 0:01:44.5]} 18... Qb3 {[%clk 0:02:08]} 19. a5 {[%clk
0:01:37.7]} 19... Qxb2 {[%clk 0:01:54.2]} 20. Ne2 {[%clk 0:01:33]} 20... Rxc1
{[%clk 0:01:35.1]} 21. Bxc1 {[%clk 0:01:31.2]} 21... Qc2 {[%clk 0:01:31.8]} 22.
Qxc2 {[%clk 0:01:21.1]} 22... Rxc2 {[%clk 0:01:33.1]} 23. Nd4 {[%clk 0:01:19.4]}
23... Rc7 {[%clk 0:01:31.9]} 24. Be3 {[%clk 0:01:19.4]} 24... Nd7 {[%clk
0:01:32.7]} 25. Rb1 {[%clk 0:01:17.6]} 25... Bf6 {[%clk 0:01:24.1]} 26. h3
{[%clk 0:01:16.2]} 26... h5 {[%clk 0:01:23.7]} 27. Ne2 {[%clk 0:01:16.5]} 27...
Kf8 {[%clk 0:01:17.6]} 28. Nf4 {[%clk 0:01:17.4]} 28... e6 {[%clk 0:01:16.1]}
29. Ne2 {[%clk 0:01:17.4]} 29... Ke7 {[%clk 0:01:16.9]} 30. g4 {[%clk
0:01:18.6]} 30... hxg4 {[%clk 0:01:17.2]} 31. hxg4 {[%clk 0:01:20.4]} 31... Nc5
{[%clk 0:01:05.6]} 32. g5 {[%clk 0:01:14]} 32... Bg7 {[%clk 0:01:04.4]} 33. Kg2
{[%clk 0:01:13.6]} 33... Kd7 {[%clk 0:01:01.2]} 34. Rh1 {[%clk 0:01:12.4]} 34...
Kc6 {[%clk 0:00:58.9]} 35. Nd4+ {[%clk 0:01:09.4]} 35... Bxd4 {[%clk 0:00:59.1]}
36. Bxd4 {[%clk 0:01:11.2]} 36... Kb5 {[%clk 0:00:58]} 37. e5 {[%clk 0:01:05.1]}
37... d5 {[%clk 0:00:57]} 38. Rc1 {[%clk 0:01:00.2]} 38... Rc6 {[%clk
0:00:53.6]} 39. Kg3 {[%clk 0:00:58.7]} 39... Nb3 {[%clk 0:00:51.7]} 40. Rb1
{[%clk 0:00:59.3]} 40... Kb4 {[%clk 0:00:52.2]} 41. Bf2 {[%clk 0:00:59.5]} 41...
Rc4 {[%clk 0:00:52.8]} 42. Be1+ {[%clk 0:01:00.4]} 42... Ka3 {[%clk 0:00:54.1]}
43. Rd1 {[%clk 0:01:00.5]} 43... d4 {[%clk 0:00:54.4]} 44. Kf4 {[%clk
0:01:00.8]} 44... Kb2 {[%clk 0:00:53.7]} 45. Bf2 {[%clk 0:00:58.7]} 45... Kc2
{[%clk 0:00:54.6]} 46. Rh1 {[%clk 0:00:59.2]} 46... d3+ {[%clk 0:00:56.1]} 47.
Ke3 {[%clk 0:01:00.6]} 47... d2 {[%clk 0:00:57.4]} 48. Ke2 {[%clk 0:01:02.2]}
48... Nc1+ {[%clk 0:00:57.2]} 49. Ke3 {[%clk 0:01:02.2]} 49... d1=Q {[%clk
0:00:57.7]} 0-1